fUST/lending_fUST_20260502
["ID","MTS","AMOUNT","RATE_DAILY","PERIOD"]
[421442093,1777656642000,-500.0,0.00019178,2]
[421442092,1777656642000,-500.0,0.00019178,2]
[421442094,1777656642000,-62913.37,0.00019178,2]
[421442090,1777656642000,-187.27981664,0.00019178,2]
[421442091,1777656642000,-500.0,0.00019178,2]
[421442096,1777656642000,-500.0,0.00019178,2]
[421442111,1777656642000,-500.0,0.00019178,2]
[421442112,1777656642000,-15600.14,0.00019178,2]
[421442113,1777656642000,-554.99,0.00019178,2]
[421442110,1777656642000,-3527.96,0.00019178,2]
[421442097,1777656642000,-500.0,0.00019178,2]
[421442101,1777656642000,-500.0,0.00019178,2]
[421442128,1777656642000,-500.0,0.00019178,2]
[421442127,1777656642000,-13302.89,0.00019178,2]
[421442117,1777656642000,-500.0,0.00019178,2]
[421442114,1777656642000,-500.0,0.00019178,2]
[421442108,1777656642000,-500.0,0.00019178,2]
[421442131,1777656642000,-6954.5,0.00019178,2]
[421442109,1777656642000,-2711.76,0.00019178,2]
[421442106,1777656642000,-854.32,0.00019178,2]
[421442103,1777656642000,-500.0,0.00019178,2]
[421442099,1777656642000,-500.0,0.00019178,2]
[421442107,1777656642000,-500.0,0.00019178,2]
[421442105,1777656642000,-12290.36,0.00019178,2]
[421442155,1777656643000,-2470.47413237,0.00019178,2]
[421442156,1777656643000,-966.24,0.00019178,2]
[421442157,1777656643000,-15474.46,0.00019178,2]
[421442162,1777656643000,-300.00887849,0.00019178,2]
[421442158,1777656643000,-595.99439903,0.00019178,2]
[421442161,1777656643000,-500.0,0.00019178,2]
[421442163,1777656643000,-383.015,0.00015,2]
[421442165,1777656643000,-352.35513681,0.00015,2]
[421442166,1777656643000,-295.53052872,0.00015,2]
[421442167,1777656643000,-150.46947128,0.00018552,2]
[421442160,1777656643000,-3192.26560097,0.00019178,2]
[421442183,1777656646000,-494.293216,0.00019178,2]
[421442182,1777656646000,-97.39468633,0.00019178,2]
[421442177,1777656646000,-102.81644984,0.00018552,2]
[421442179,1777656646000,-160.0,0.00019063,2]
[421442187,1777656646000,-1772.94580106,0.00019178,2]
[421442180,1777656646000,-219.068995,0.00019063,2]
[421442178,1777656646000,-4316.05126915,0.00018986,2]
[421442184,1777656646000,-351.92062858,0.00019178,2]
[421442185,1777656646000,-5142.00043291,0.00019178,2]
[421442188,1777656646000,-604.9,0.00019178,2]
[421442181,1777656646000,-278.13799,0.00019063,2]
[421442191,1777656646000,-551.84,0.00019178,2]
[421442186,1777656646000,-1257.42635663,0.00019178,2]
[421442197,1777656646000,-500.54,0.00019178,2]
[421442195,1777656646000,-151.0,0.00019178,2]
[421442198,1777656646000,-2200.6528228,0.00019178,2]
[421442196,1777656646000,-500.0,0.00019178,2]
[421442194,1777656646000,-151.0,0.00019178,2]
[421442193,1777656646000,-500.0,0.00019178,2]
[421442189,1777656646000,-546.04,0.00019178,2]
[421442192,1777656646000,-500.0,0.00019178,2]
[421442190,1777656646000,-500.0,0.00019178,2]
[421442202,1777656669000,1350.0,0.00012,2]
[421442217,1777657359000,17158.90892112,0.00021916,120]
[421442306,1777657832000,-809.56186714,8.439e-05,2]
[421442298,1777657832000,-291.85012365,8.355e-05,2]
[421442305,1777657832000,-1548.40651717,8.439e-05,2]
[421442300,1777657832000,-779.60787635,8.439e-05,2]
[421442430,1777657838000,-601.94617406,0.000149,2]
[421442432,1777657838000,-160.0,0.00015,2]
[421442433,1777657838000,-187.719622,0.00015068,2]
[421442431,1777657838000,-152.70751277,0.00015,2]
[421442434,1777657838000,-500.0,0.00016299,2]
[421442435,1777657838000,-500.0,0.00016299,2]
[421442436,1777657838000,-193.26524022,0.00016299,2]
[421442429,1777657838000,-271.56307808,0.00014567,2]
[421442415,1777657838000,-519.0,8.524e-05,2]
[421442428,1777657838000,-1000.0,0.00013699,2]
[421442427,1777657838000,-267.186793,0.00013699,2]
[421442438,1777657838000,-364.22578552,0.00016299,2]
[421442419,1777657838000,-2754.94534959,9.425e-05,2]
[421442425,1777657838000,-239.82193909,0.00012567,2]
[421442417,1777657838000,-176.33966109,8.567e-05,2]
[421442413,1777657838000,-1862.42373934,8.439e-05,2]
[421442423,1777657838000,-814.24478776,0.00012,2]
[421442421,1777657838000,-208.08080009,0.00010567,2]
[421442437,1777657838000,-500.0,0.00016299,2]
[421442449,1777657838000,-500.0,0.00016299,2]
[421442442,1777657838000,-500.0,0.00016299,2]
[421442440,1777657838000,-500.0,0.00016299,2]
[421442460,1777657838000,-1477.8415112,0.000163,2]
[421442459,1777657838000,-3715.72626716,0.000163,2]
[421442456,1777657838000,-51231.41678187,0.000163,2]
[421442454,1777657838000,-152.25441977,0.000163,2]
[421442458,1777657838000,-76671.00000002,0.000163,2]
[421442441,1777657838000,-500.0,0.00016299,2]
[421442457,1777657838000,-205691.60075101,0.000163,2]
[421442452,1777657838000,-340.97558948,0.00016299,2]
[421442455,1777657838000,-151.94156625,0.000163,2]
[421442450,1777657838000,-500.0,0.00016299,2]
[421442451,1777657838000,-500.0,0.00016299,2]
[421442445,1777657838000,-500.0,0.00016299,2]
[421442446,1777657838000,-156.55492534,0.00016299,2]
[421442448,1777657838000,-500.0,0.00016299,2]
[421442447,1777657838000,-500.0,0.00016299,2]
[421442444,1777657838000,-500.0,0.00016299,2]
[421442439,1777657838000,-500.0,0.00016299,2]
[421442453,1777657838000,-150.73316467,0.000163,2]
[421442443,1777657838000,-500.0,0.00016299,2]
[421442480,1777657840000,-703.674,0.000163,2]
[421442482,1777657840000,-671.77936835,0.000163,2]
[421442483,1777657840000,-6085.88211101,0.000163,2]
[421442479,1777657840000,-3098.01662044,0.000163,2]
[421442481,1777657840000,-6423.94677741,0.000163,2]
[421442733,1777657846000,-141478.36125108,0.000163,2]
[421442731,1777657846000,-1347.01359077,0.000163,2]
[421442735,1777657847000,-1757.1989694,0.000163,2]
[421442734,1777657847000,-233173.78417386,0.000163,2]
[421442772,1777659032000,-5000.0,0.00013062,2]
[421442773,1777659032000,-167.79231248,0.00013194,2]
[421442777,1777659032000,-300.0,0.00014856,2]
[421442776,1777659032000,-300.0,0.00014856,2]
[421442774,1777659032000,-1000.0,0.00013699,2]
[421442775,1777659032000,-267.186794,0.00014532,2]
[421442779,1777659032000,-1537.96884526,0.00014857,2]
[421442780,1777659032000,-441.70512035,0.00014857,2]
[421442781,1777659032000,-1286.90383156,0.00014857,2]
[421442778,1777659032000,-1200.0,0.00014856,2]
[421442787,1777659038000,-168.9517238,0.00015454,2]
[421442782,1777659038000,-503.8814169,0.00014708,2]
[421442783,1777659038000,-3367.25008776,0.00014708,2]
[421442785,1777659038000,-187.719622,0.00015068,2]
[421442784,1777659038000,-160.0,0.00015,2]
[421442786,1777659038000,-197.99492872,0.00015194,2]
[421442789,1777659038000,-420.52709083,0.00015454,2]
[421442792,1777659038000,-500.0,0.00015454,2]
[421442790,1777659038000,-79.47290917,0.00015454,2]
[421442791,1777659038000,-500.0,0.00015454,2]
[421442793,1777659038000,-500.0,0.00015454,2]
[421442796,1777659038000,-468.27642393,0.00015454,2]
[421442795,1777659038000,-187.18000715,0.00015454,2]
[421442794,1777659038000,-614.87666005,0.00015454,2]
[421442788,1777659038000,-500.0,0.00015454,2]
[421442800,1777659041000,-292.70063837,0.00015454,2]
[421442797,1777659041000,-1093.19,0.00014487,2]
[421442803,1777659041000,-456.68306186,0.00015454,2]
[421442799,1777659041000,-500.0,0.00015454,2]
[421442801,1777659041000,-500.0,0.00015454,2]
[421442805,1777659041000,-427.37498328,0.00015455,2]
[421442802,1777659041000,-500.0,0.00015454,2]
[421442804,1777659041000,-500.0,0.00015454,2]
[421442807,1777659041000,-496.96406505,0.00015455,2]
[421442806,1777659041000,-276.09114725,0.00015455,2]
[421442808,1777659041000,-105.36842994,0.00015455,2]
[421442798,1777659041000,-31.72357607,0.00015454,2]
[421442822,1777659046000,-5785.22557891,0.00015453,2]
[421443283,1777660232000,-1098.22430452,0.00012584,2]
[421443285,1777660232000,-39296.4,0.00012584,2]
[421443370,1777660238000,-5521.82294501,0.00012588,2]
[421443368,1777660238000,-4472.67658546,0.00012588,2]
[421443366,1777660238000,-3533.96668481,0.00012588,2]
[421443364,1777660238000,-2705.69324306,0.00012588,2]
[421443362,1777660238000,-1987.8562602,0.00012588,2]
[421443357,1777660238000,-300.0,0.00012585,2]
[421443361,1777660238000,-1380.45573625,0.00012588,2]
[421443353,1777660238000,-545.0,0.000125,2]
[421443351,1777660238000,-11781.70598585,0.000125,2]
[421443381,1777660238000,-2151.64581242,0.00012591,2]
[421443354,1777660238000,-159605.37569548,0.00012584,2]
[421443380,1777660238000,-12411.67752465,0.00012588,2]
[421443359,1777660238000,-778.12324126,0.00012588,2]
[421443374,1777660238000,-7951.42504082,0.00012588,2]
[421443372,1777660238000,-6681.40576346,0.00012588,2]
[421443386,1777660238000,-300.0,0.00012839,2]
[421443378,1777660238000,-10822.77297222,0.00012588,2]
[421443389,1777660238000,-300.0,0.00012839,2]
[421443376,1777660238000,-9331.88077707,0.00012588,2]
[421443384,1777660238000,-300.0,0.00012839,2]
[421443387,1777660238000,-300.0,0.00012839,2]
[421443391,1777660238000,-300.0,0.00012839,2]
[421443398,1777660238000,-300.0,0.00012839,2]
[421443393,1777660238000,-300.0,0.00012839,2]
[421443395,1777660238000,-300.0,0.00012839,2]
[421443396,1777660238000,-300.0,0.00012839,2]
[421443382,1777660238000,-8606.58324966,0.00012591,2]
[421443459,1777660239000,-500.0,0.00013947,2]
[421443460,1777660239000,-500.0,0.00013951,2]
[421443465,1777660239000,-500.0,0.00014679,2]
[421443456,1777660239000,-420.0,0.00013807,2]
[421443458,1777660239000,-500.0,0.00013947,2]
[421443453,1777660239000,-500.0,0.00013524,2]
[421443464,1777660239000,-152.0,0.00014437,7]
[421443462,1777660239000,-720.0,0.00014123,2]
[421443463,1777660239000,-152.0,0.00014416,7]
[421443454,1777660239000,-1000.0,0.00013699,2]
[421443455,1777660239000,-500.0,0.00013798,2]
[421443457,1777660239000,-500.0,0.00013947,2]
[421443461,1777660239000,-559.89922848,0.00013957,2]
[421443468,1777660239000,-500.0,0.00014681,2]
[421443466,1777660239000,-500.0,0.00014679,2]
[421443473,1777660239000,-184.109631,0.00015068,2]
[421443469,1777660239000,-500.0,0.00014685,2]
[421443449,1777660239000,-497.30309953,0.0001325,2]
[421443470,1777660239000,-559.89922848,0.00014772,2]
[421443471,1777660239000,-1383.61768861,0.00014878,2]
[421443472,1777660239000,-3043.3177626,0.00014978,2]
[421443474,1777660239000,-587.0,0.00015148,2]
[421443476,1777660239000,-151.0,0.000152,2]
[421443475,1777660239000,-3469.88512487,0.00015178,2]
[421443477,1777660239000,-508.79060187,0.00015241,2]
[421443478,1777660239000,-6733.42,0.00015241,2]
[421443479,1777660239000,-221.49909756,0.00015247,2]
[421443467,1777660239000,-571.14,0.00014679,2]
[421443448,1777660239000,-9782.30206239,0.0001325,2]
[421443441,1777660239000,-187.71109963,0.00013247,2]
[421443442,1777660239000,-500.0,0.0001325,2]
[421443480,1777660239000,-3720.28814302,0.00015278,2]
[421443400,1777660239000,-300.0,0.00012839,2]
[421443410,1777660239000,-300.0,0.00012839,2]
[421443412,1777660239000,-600.0,0.00012839,2]
[421443402,1777660239000,-300.0,0.00012839,2]
[421443404,1777660239000,-300.0,0.00012839,2]
[421443415,1777660239000,-559.89922852,0.00013143,2]
[421443406,1777660239000,-300.0,0.00012839,2]
[421443408,1777660239000,-300.0,0.00012839,2]
[421443417,1777660239000,-500.0,0.00013239,2]
[421443419,1777660239000,-500.0,0.00013239,2]
[421443423,1777660239000,-500.0,0.00013239,2]
[421443424,1777660239000,-500.0,0.00013239,2]
[421443421,1777660239000,-259.58844773,0.00013239,2]
[421443428,1777660239000,-500.0,0.00013239,2]
[421443434,1777660239000,-500.0,0.00013239,2]
[421443430,1777660239000,-500.0,0.00013239,2]
[421443432,1777660239000,-500.0,0.00013239,2]
[421443438,1777660239000,-500.0,0.00013239,2]
[421443436,1777660239000,-354.95804986,0.00013239,2]
[421443440,1777660239000,-411.78042942,0.00013243,2]
[421443450,1777660239000,-1989.21239812,0.0001325,2]
[421443451,1777660239000,-4471.25216787,0.0001325,2]
[421443452,1777660239000,-3889.11779223,0.00013254,2]
[421443439,1777660239000,-500.0,0.00013239,2]
[421443446,1777660239000,-4352.04184735,0.0001325,2]
[421443443,1777660239000,-272.00261546,0.0001325,2]
[421443445,1777660239000,-2448.02353914,0.0001325,2]
[421443444,1777660239000,-1088.01046184,0.0001325,2]
[421443447,1777660239000,-6800.06538649,0.0001325,2]
[421443481,1777660239000,-864.0,0.00015535,2]
[421443499,1777660239000,-151.0,0.00016438,2]
[421443483,1777660239000,-151.0,0.000156,2]
[421443519,1777660239000,-158.040931,0.000165,2]
[421443518,1777660239000,-158.040931,0.000165,2]
[421443520,1777660239000,-158.040931,0.000165,2]
[421443521,1777660239000,-158.040931,0.000165,2]
[421443529,1777660239000,-153.07664,0.000165,2]
[421443522,1777660239000,-151.0,0.000165,2]
[421443526,1777660239000,-151.0,0.000165,2]
[421443524,1777660239000,-151.0,0.000165,2]
[421443528,1777660239000,-151.0,0.000165,2]
[421443523,1777660239000,-151.0,0.000165,2]
[421443525,1777660239000,-151.0,0.000165,2]
[421443530,1777660239000,-151.0,0.000165,2]
[421443527,1777660239000,-151.0,0.000165,2]
[421443509,1777660239000,-270.71571676,0.00016438,2]
[421443532,1777660239000,-151.0,0.000165,2]
[421443542,1777660239000,-455.9805711,0.00017302,2]
[421443482,1777660239000,-559.89922848,0.00015586,2]
[421443533,1777660239000,-151.0,0.000165,2]
[421443540,1777660239000,-325.612506,0.00017302,2]
[421443534,1777660239000,-151.0,0.000168,2]
[421443535,1777660239000,-250.38489549,0.00016825,2]
[421443539,1777660239000,-255.2870955,0.00017247,2]
[421443536,1777660239000,-151.0,0.00017,2]
[421443537,1777660239000,-1000.0,0.00017088,2]
[421443544,1777660239000,-160.0,0.00017464,2]
[421443541,1777660239000,-246.7866508,0.00017302,2]
[421443538,1777660239000,-151.0,0.000172,2]
[421443545,1777660239000,-160.0,0.00017464,2]
[421443543,1777660239000,-160.0,0.00017464,2]
[421443508,1777660239000,-151.0,0.00016438,2]
[421443531,1777660239000,-151.0,0.000165,2]
[421443507,1777660239000,-151.0,0.00016438,2]
[421443510,1777660239000,-151.0,0.00016438,2]
[421443486,1777660239000,-156.75,0.000161,2]
[421443484,1777660239000,-151.0,0.00016,2]
[421443485,1777660239000,-5000.0,0.0001606,2]
[421443487,1777660239000,-592.260312,0.00016144,2]
[421443488,1777660239000,-3107.1312774,0.00016144,2]
[421443490,1777660239000,-173.4,0.00016291,2]
[421443491,1777660239000,-177.37,0.00016303,2]
[421443492,1777660239000,-1000.0,0.00016399,2]
[421443493,1777660239000,-1000.0,0.00016399,3]
[421443495,1777660239000,-559.89922848,0.000164,2]
[421443494,1777660239000,-151.0,0.000164,2]
[421443496,1777660239000,-404.72551688,0.00016438,2]
[421443498,1777660239000,-11228.05,0.00016438,2]
[421443489,1777660239000,-181.8474051,0.00016144,2]
[421443500,1777660239000,-151.0,0.00016438,2]
[421443506,1777660239000,-2577.515403,0.00016438,2]
[421443497,1777660239000,-11228.05,0.00016438,2]
[421443515,1777660239000,-151.574316,0.000165,2]
[421443513,1777660239000,-151.0,0.000165,2]
[421443504,1777660239000,-158.040931,0.00016438,2]
[421443517,1777660239000,-151.0,0.000165,2]
[421443516,1777660239000,-151.0,0.000165,2]
[421443512,1777660239000,-169804.85689595,0.000165,2]
[421443511,1777660239000,-151.0,0.00016438,2]
[421443505,1777660239000,-5000.0,0.00016438,2]
[421443503,1777660239000,-158.040931,0.00016438,2]
[421443502,1777660239000,-158.040931,0.00016438,2]
[421443501,1777660239000,-158.040931,0.00016438,2]
[421443514,1777660239000,-151.0,0.000165,2]
[421443546,1777660240000,-160.0,0.00017464,2]
[421443578,1777660240000,-151.0,0.000181,2]
[421443563,1777660240000,-377.11469011,0.00018,2]
[421443569,1777660240000,-180.908997,0.00018032,7]
[421443576,1777660240000,-151.0,0.00018049,2]
[421443570,1777660240000,-322.62432,0.00018032,2]
[421443568,1777660240000,-1961.124126,0.00018032,2]
[421443572,1777660240000,-324.8330292,0.00018049,2]
[421443591,1777660240000,-170.0,0.00018214,2]
[421443571,1777660240000,-234.431272,0.00018032,7]
[421443575,1777660240000,-152.5227241,0.00018049,2]
[421443574,1777660240000,-151.0,0.00018049,2]
[421443580,1777660240000,-452.9966306,0.00018124,2]
[421443590,1777660240000,-377.11469011,0.000182,2]
[421443592,1777660240000,-822.0,0.00018218,2]
[421443564,1777660240000,-151.0,0.00018,2]
[421443577,1777660240000,-152.7010237,0.0001805,2]
[421443561,1777660240000,-739.44567883,0.000179,2]
[421443553,1777660240000,-242.0,0.00017753,3]
[421443566,1777660240000,-160.0,0.00018032,2]
[421443556,1777660240000,-537.6845,0.00017787,2]
[421443547,1777660240000,-739.44567883,0.000175,2]
[421443554,1777660240000,-1957.856,0.00017787,2]
[421443552,1777660240000,-739.44567883,0.000177,2]
[421443581,1777660240000,-152.2219149,0.00018124,2]
[421443557,1777660240000,-2150.738,0.00017787,2]
[421443548,1777660240000,-822.0,0.00017578,2]
[421443565,1777660240000,-170.0,0.00018015,2]
[421443555,1777660240000,-265.43433542,0.00017787,2]
[421443550,1777660240000,-151.0,0.000176,2]
[421443549,1777660240000,-822.0,0.00017589,2]
[421443558,1777660240000,-170.0,0.00017817,2]
[421443560,1777660240000,-814.0,0.00017898,2]
[421443567,1777660240000,-1060.562063,0.00018032,2]
[421443559,1777660240000,-348.19318835,0.00017842,2]
[421443562,1777660240000,-739.44567883,0.00018,2]
[421443551,1777660240000,-151.0,0.000176,2]
[421443579,1777660240000,-151.0,0.00018124,2]
[421443603,1777660240000,-1645.15,0.000184,2]
[421443587,1777660240000,-185.0,0.0001814,2]
[421443626,1777660240000,-324.4134,0.000184,2]
[421443611,1777660240000,-2243.703,0.000184,2]
[421443616,1777660240000,-1815.256,0.000184,2]
[421443614,1777660240000,-1815.256,0.000184,2]
[421443612,1777660240000,-2243.703,0.000184,2]
[421443613,1777660240000,-2243.7,0.000184,2]
[421443618,1777660240000,-1815.25,0.000184,2]
[421443609,1777660240000,-1507.41,0.000184,2]
[421443628,1777660240000,-377.11469011,0.000184,2]
[421443630,1777660240000,-151.0,0.000184,2]
[421443637,1777660240000,-151.0,0.000186,2]
[421443639,1777660240000,-170.0,0.00018611,2]
[421443649,1777660240000,-560.78235578,0.0001862,2]
[421443641,1777660240000,-109243.62080276,0.0001862,2]
[421443646,1777660240000,-15464.8921136,0.0001862,2]
[421443584,1777660240000,-2213.0,0.0001814,2]
[421443632,1777660240000,-170.0,0.00018412,2]
[421443620,1777660240000,-407.52,0.000184,2]
[421443634,1777660240000,-377.11469011,0.000185,2]
[421443610,1777660240000,-2386.9803,0.000184,2]
[421443623,1777660240000,-477.16,0.000184,2]
[421443583,1777660240000,-646.0,0.0001814,2]
[421443588,1777660240000,-442.0,0.0001814,2]
[421443589,1777660240000,-739.44567883,0.000182,2]
[421443586,1777660240000,-1410.0,0.0001814,2]
[421443595,1777660240000,-5531.280819,0.00018248,7]
[421443605,1777660240000,-1509.73,0.000184,2]
[421443599,1777660240000,-2230.315306,0.00018335,2]
[421443593,1777660240000,-160.0,0.00018248,7]
[421443597,1777660240000,-554.80304217,0.00018335,2]
[421443594,1777660240000,-2845.640409,0.00018248,7]
[421443596,1777660240000,-250.278261,0.00018248,2]
[421443602,1777660240000,-2033.44,0.000184,2]
[421443607,1777660240000,-1221.44,0.000184,2]
[421443604,1777660240000,-1509.73,0.000184,2]
[421443608,1777660240000,-1507.41,0.000184,2]
[421443601,1777660240000,-280.506,0.00018384,2]
[421443606,1777660240000,-1221.44,0.000184,2]
[421443666,1777660241000,-159.661982,0.00016438,2]
[421443668,1777660241000,-211.07160092,0.00018552,2]
[421443671,1777660241000,-19077.6863376,0.0001862,2]
[421443670,1777660241000,-7545.5262697,0.0001862,2]
[421443669,1777660241000,-1294.68514135,0.0001862,2]
[421443667,1777660241000,-159.661982,0.000165,2]
[421443708,1777660243000,-159.661982,0.00016438,2]
[421443710,1777660243000,-255.2870955,0.00016542,2]
[421443709,1777660243000,-159.661982,0.000165,2]
[421443707,1777660243000,-159.661982,0.00016438,2]
[421443711,1777660243000,-144.64649827,0.00018542,2]
[421443784,1777660249000,-822.0,0.00018858,2]
[421443785,1777660249000,-151.385496,0.00018858,2]
[421443788,1777660249000,-151.0,0.00018871,2]
[421443787,1777660249000,-522.700904,0.00018871,2]
[421443789,1777660249000,-151.0,0.00018871,2]
[421443791,1777660249000,-2312.83697232,0.00018883,2]
[421443792,1777660249000,-1446.220995,0.00018934,2]
[421443794,1777660249000,-12656.73940732,0.0001899,2]
[421443795,1777660249000,-2928.54493876,0.0001899,2]
[421443790,1777660249000,-400.8956292,0.00018872,2]
[421443800,1777660249000,-194.0,0.000191,2]
[421443796,1777660249000,-152.0,0.00019,2]
[421443793,1777660249000,-822.0,0.00018936,2]
[421443799,1777660249000,-357.91,0.000191,2]
[421443798,1777660249000,-170.0,0.00019008,5]
[421443802,1777660249000,-1752.11437905,0.0001916,7]
[421443801,1777660249000,-2128.30436095,0.0001916,7]
[421443804,1777660249000,-500.0,0.00019178,2]
[421443803,1777660249000,-155.0,0.00019177,2]
[421443807,1777660249000,-54.78880094,0.00019178,2]
[421443805,1777660249000,-500.0,0.00019178,2]
[421443806,1777660249000,-500.0,0.00019178,2]
[421443786,1777660249000,-151.0,0.00018871,2]
[421443782,1777660249000,-170.0,0.00018809,2]
[421443768,1777660249000,-151.0,0.0001862,2]
[421443781,1777660249000,-151.0,0.000188,2]
[421443760,1777660249000,-159.661982,0.000165,2]
[421443759,1777660249000,-159.661982,0.00016438,2]
[421443762,1777660249000,-144.42859516,0.00018542,2]
[421443761,1777660249000,-159.661982,0.000165,2]
[421443763,1777660249000,-211.07160092,0.00018552,2]
[421443764,1777660249000,-211.07160092,0.00018552,2]
[421443766,1777660249000,-151.0,0.0001862,2]
[421443765,1777660249000,-41881.75625702,0.0001862,2]
[421443767,1777660249000,-151.0,0.0001862,2]
[421443808,1777660249000,-474.05119906,0.00019178,2]
[421443783,1777660249000,-325.612506,0.00018858,2]
[421443771,1777660249000,-159.661982,0.0001862,2]
[421443773,1777660249000,-159.661982,0.0001862,2]
[421443770,1777660249000,-159.661982,0.0001862,2]
[421443776,1777660249000,-250.0,0.00018778,2]
[421443769,1777660249000,-238.5,0.0001862,2]
[421443774,1777660249000,-822.0,0.00018661,2]
[421443778,1777660249000,-250.0,0.00018778,2]
[421443775,1777660249000,-377.11469011,0.000187,2]
[421443777,1777660249000,-250.0,0.00018778,2]
[421443780,1777660249000,-244.0,0.00018797,2]
[421443779,1777660249000,-1000.0,0.00018797,2]
[421443772,1777660249000,-159.661982,0.0001862,2]
[421443809,1777660249000,-500.0,0.00019178,2]
[421443797,1777660249000,-366.698,0.00019,2]
[421443812,1777660249000,-500.0,0.00019178,2]
[421443835,1777660249000,-500.0,0.00019178,2]
[421443837,1777660249000,-507.07,0.00019178,2]
[421443838,1777660249000,-500.0,0.00019178,2]
[421443840,1777660249000,-525.44,0.00019178,2]
[421443839,1777660249000,-500.0,0.00019178,2]
[421443845,1777660249000,-564.55,0.00019178,2]
[421443843,1777660249000,-500.0,0.00019178,2]
[421443848,1777660249000,-500.0,0.00019178,2]
[421443849,1777660249000,-500.0,0.00019178,2]
[421443855,1777660249000,-500.0,0.00019178,2]
[421443851,1777660249000,-640.09,0.00019178,2]
[421443844,1777660249000,-500.0,0.00019178,2]
[421443846,1777660249000,-527.97,0.00019178,2]
[421443847,1777660249000,-914.03,0.00019178,2]
[421443853,1777660249000,-500.0,0.00019178,2]
[421443852,1777660249000,-500.0,0.00019178,2]
[421443854,1777660249000,-500.0,0.00019178,2]
[421443857,1777660249000,-500.0,0.00019178,2]
[421443858,1777660249000,-500.0,0.00019178,2]
[421443856,1777660249000,-500.0,0.00019178,2]
[421443860,1777660249000,-500.0,0.00019178,2]
[421443815,1777660249000,-500.0,0.00019178,2]
[421443859,1777660249000,-652.49,0.00019178,2]
[421443836,1777660249000,-500.0,0.00019178,2]
[421443834,1777660249000,-1779.97,0.00019178,2]
[421443850,1777660249000,-581.12,0.00019178,2]
[421443841,1777660249000,-500.0,0.00019178,2]
[421443811,1777660249000,-1215.41,0.00019178,2]
[421443817,1777660249000,-829.79,0.00019178,2]
[421443833,1777660249000,-500.0,0.00019178,2]
[421443810,1777660249000,-534.48,0.00019178,2]
[421443816,1777660249000,-500.0,0.00019178,2]
[421443813,1777660249000,-511.96573026,0.00019178,2]
[421443814,1777660249000,-618.87619596,0.00019178,2]
[421443818,1777660249000,-500.0,0.00019178,2]
[421443820,1777660249000,-500.0,0.00019178,2]
[421443821,1777660249000,-794.86,0.00019178,2]
[421443822,1777660249000,-500.0,0.00019178,2]
[421443823,1777660249000,-500.0,0.00019178,2]
[421443819,1777660249000,-1165.72,0.00019178,2]
[421443825,1777660249000,-634.21,0.00019178,2]
[421443828,1777660249000,-500.0,0.00019178,2]
[421443832,1777660249000,-500.0,0.00019178,2]
[421443830,1777660249000,-500.0,0.00019178,2]
[421443826,1777660249000,-515.76,0.00019178,2]
[421443827,1777660249000,-500.0,0.00019178,2]
[421443824,1777660249000,-640.77,0.00019178,2]
[421443829,1777660249000,-500.0,0.00019178,2]
[421443831,1777660249000,-500.0,0.00019178,2]
[421443842,1777660249000,-1599.68,0.00019178,2]
[421443893,1777660250000,-500.0,0.00019178,2]
[421443901,1777660250000,-710.38,0.00019178,2]
[421443900,1777660250000,-500.0,0.00019178,2]